bitfinex/quotes_ETHUSD_20250328
["timestamp","ask_amount","ask_price","bid_price","bid_amount"]
[1743132565181,0.1719047,1999.1,1998.7,0.7546]
[1743132565907,0.1719047,1999.1,1998.7,0.99398917]
[1743132566763,0.1719047,1999.1,1998.8,0.05002579]
[1743132567778,0.1719047,1999.1,1998.7,0.99398917]
[1743132567963,0.1719047,1999.1,1998.7,1.43864768]
[1743132574599,0.1719047,1999.1,1998.7,0.99398917]
[1743132575303,0.7631,1999.0,1998.7,0.99398917]
[1743132575822,0.1719047,1998.9,1998.7,0.99398917]
[1743132576036,0.7631,1999.0,1998.7,0.99398917]
[1743132576246,0.7631,1999.0,1998.5,1.10479517]
[1743132576247,4.21569589,1999.0,1998.5,0.29669517]
[1743132576728,0.16869824,1998.9,1998.5,0.29669517]
[1743132576933,0.7631,1998.8,1998.5,0.29669517]
[1743132577298,0.7631,1998.8,1998.5,1.27466577]
[1743132577600,0.16869824,1998.7,1998.5,1.27466577]
[1743132587831,0.16869824,1998.7,1998.6,0.05003272]
[1743132588144,0.7809,1998.8,1998.5,1.27466577]
[1743132588331,0.16829736,1998.7,1998.5,1.27466577]
[1743132588652,0.16829736,1998.7,1998.5,1.24072084]
[1743132589006,0.7809,1998.8,1998.5,1.24072084]
[1743132589247,0.16829736,1998.7,1998.5,1.24072084]
[1743132589449,0.7809,1998.8,1998.5,1.24072084]
[1743132589612,0.16829736,1998.7,1998.5,1.24072084]
[1743132589812,0.7809,1998.8,1998.5,1.24072084]
[1743132590010,0.16829736,1998.7,1998.5,1.24072084]
[1743132590227,0.7809,1998.8,1998.5,1.24072084]
[1743132590429,0.16829736,1998.7,1998.5,1.24072084]
[1743132590640,0.7809,1998.8,1998.5,1.24072084]
[1743132590805,0.16829736,1998.7,1998.5,1.24072084]
[1743132591009,0.7809,1998.8,1998.5,1.24072084]
[1743132591251,0.16829736,1998.7,1998.5,1.24072084]
[1743132591457,0.7809,1998.8,1998.5,1.24072084]
[1743132591613,0.16829736,1998.7,1998.5,1.24072084]
[1743132591814,0.7809,1998.8,1998.5,1.24072084]
[1743132592040,0.16829736,1998.7,1998.5,1.24072084]
[1743132592345,0.7809,1998.8,1998.5,1.24072084]
[1743132592751,0.16829736,1998.7,1998.5,1.24072084]
[1743132593050,0.7809,1998.8,1998.5,1.24072084]
[1743132593347,0.16829736,1998.7,1998.5,1.24072084]
[1743132593653,0.7809,1998.8,1998.5,1.24072084]
[1743132593838,0.16829736,1998.7,1998.5,1.24072084]
[1743132594039,0.7809,1998.8,1998.5,1.24072084]
[1743132594251,0.16829736,1998.7,1998.5,1.24072084]
[1743132594559,0.7809,1998.8,1998.5,1.24072084]
[1743132594741,3.45259589,1999.1,1998.5,1.24072084]
[1743132594923,0.16829736,1998.7,1998.5,1.24072084]
[1743132595242,0.7575,1999.0,1998.5,1.24072084]
[1743132595441,0.16829736,1998.9,1998.5,1.24072084]
[1743132599156,0.7575,1998.8,1998.5,1.24072084]
[1743132599314,0.7575,1998.8,1998.5,0.26275024]
[1743132599514,3.0,1998.6,1998.5,0.26275024]
[1743132599714,3.8148,1998.6,1998.5,0.26275024]
[1743132600163,3.98323099,1998.6,1998.5,0.26275024]
[1743132603647,3.98323099,1998.6,1998.5,0.26275024]
[1743132604145,0.98323099,1998.6,1998.5,0.26275024]
[1743132604314,0.16843099,1998.6,1998.5,0.26275024]
[1743132605445,0.98533099,1998.6,1998.5,0.26275024]
[1743132605649,0.98533099,1998.6,1998.0,0.88352444]
[1743132606049,0.98533099,1998.6,1998.1,0.05004088]
[1743132606244,0.98533099,1998.6,1998.1,0.05004082]
[1743132606853,0.98533099,1998.6,1998.0,0.88352444]
[1743132607077,0.98533099,1998.6,1998.1,0.05004083]
[1743132607457,0.16843099,1998.6,1998.0,4.33612033]
[1743132607765,0.16843099,1998.6,1998.1,0.43361203]
[1743132607970,0.16843099,1998.6,1998.2,0.05003889]
[1743132608623,0.16843099,1998.6,1998.4,3.45259589]
[1743132608936,0.16843099,1998.6,1998.5,0.7733]
[1743132613366,0.16843099,1998.6,1998.5,1.2646]
[1743132614471,0.16843099,1998.6,1998.5,1.73631959]
[1743132615863,0.16843099,1998.6,1998.5,2.7254473]
[1743132616066,0.16843099,1998.6,1998.5,2.77547153]
[1743132616235,0.16843099,1998.6,1998.5,2.7254473]
[1743132617136,0.16843099,1998.6,1998.5,2.77546864]
[1743132617336,0.16843099,1998.6,1998.5,2.7254473]
[1743132617532,0.16843099,1998.6,1998.5,7.77921852]
[1743132617749,3.7875,1999.5,1998.6,0.8108]
[1743132617750,0.7875,1999.5,1998.6,0.8108]
[1743132617964,0.7875,1999.5,1998.9,0.8108]
[1743132618142,0.15119401,1999.4,1998.9,5.5378]
[1743132620078,0.15119401,1999.4,1998.9,4.727]
[1743132620079,0.7875,1999.3,1998.9,4.727]
[1743132620454,0.15717235,1999.2,1998.9,4.727]
[1743132620657,0.15717235,1999.2,1998.9,5.1997]
[1743132622011,0.15717235,1999.2,1999.1,1.00085174]
[1743132622771,0.7901,1999.5,1999.1,1.00085174]
[1743132622972,0.15708315,1999.4,1999.1,1.05087117]
[1743132623390,0.7521,1999.7,1999.1,1.05087117]
[1743132623584,0.15708315,1999.6,1999.1,1.53132845]
[1743132623963,0.15708315,1999.6,1999.3,0.801]
[1743132624166,3.8021,1999.9,1999.3,0.801]
[1743132624364,0.15708315,1999.8,1999.3,5.527]
[1743132625064,0.15708315,1999.8,1999.3,0.801]
[1743132625389,3.60967904,1999.8,1999.3,4.725]
[1743132625594,0.7521,1999.7,1999.3,4.725]
[1743132625793,3.45259589,1999.6,1999.0,0.801]
[1743132625995,0.15708315,1999.5,1999.1,4.725]
[1743132626296,0.15708315,1999.5,1999.2,0.4725]
[1743132626897,0.15708315,1999.5,1999.2,0.52251374]
[1743132627268,0.15708315,1999.5,1999.3,1.02560762]
[1743132628793,4.26129589,1999.8,1999.3,1.85810762]
[1743132629099,0.15708315,1999.7,1999.3,1.85810762]
[1743132629767,0.15708315,1999.7,1999.3,1.90811912]
[1743132630288,0.15708315,1999.7,1999.3,1.85810762]
[1743132633871,0.15708315,1999.7,1999.4,0.05000778]
[1743132634077,0.05,1999.9,1999.4,0.05000778]
[1743132634277,0.15859932,1999.6,1999.4,0.05000778]
[1743132634464,0.05,1999.9,1999.4,0.05000778]
[1743132634666,0.15859932,1999.5,1999.4,0.05000778]
[1743132634897,0.05,1999.9,1999.4,0.05000778]
[1743132635102,0.15859932,1999.5,1999.4,0.05000778]
[1743132635400,0.15859932,1999.5,1999.4,1.07647329]
[1743132635601,0.05,1999.9,1999.4,4.52906918]
[1743132635894,0.15859932,1999.8,1999.5,5.98390692]
[1743132636396,0.15859932,1999.7,1999.5,5.98390692]
[1743132636574,0.05,1999.9,1999.6,0.05000267]
[1743132636780,0.15859932,1999.8,1999.5,5.98390692]
[1743132636981,0.05,1999.9,1999.6,0.64839326]
[1743132637182,0.15859932,1999.8,1999.6,0.64839326]
[1743132637372,0.05,1999.9,1999.6,0.59839069]
[1743132637570,0.15859932,1999.8,1999.6,0.64839322]
[1743132637901,0.05,1999.9,1999.6,0.64839322]
[1743132638066,0.05,1999.9,1999.6,0.59839069]
[1743132638275,0.15859932,1999.8,1999.6,0.59839069]
[1743132638475,0.15859932,1999.8,1999.6,0.64839322]
[1743132638675,0.05,1999.9,1999.6,0.64839322]
[1743132638991,0.15859932,1999.8,1999.6,0.59839069]
[1743132639298,0.05,1999.9,1999.6,0.59839069]
[1743132639703,0.15859932,1999.8,1999.6,0.59839069]
[1743132640084,0.05,1999.9,1999.6,0.59839069]
[1743132640481,0.15859932,1999.8,1999.7,0.7584]
[1743132640802,0.05,1999.9,1999.7,2.30246113]
[1743132640973,0.15859932,1999.8,1999.7,2.30246113]
[1743132641174,0.05,1999.9,1999.7,2.30246113]
[1743132641375,0.15859932,1999.8,1999.7,2.30246113]
[1743132641571,0.05,1999.9,1999.7,2.30246137]
[1743132641771,0.15859932,1999.8,1999.7,2.30246137]
[1743132641982,0.05,1999.9,1999.7,2.30246137]
[1743132641983,0.05,1999.9,1999.8,0.7613]
[1743132642188,0.20859932,1999.9,1999.8,1.33209593]
[1743132642611,0.20859932,1999.9,1999.8,6.33259593]
[1743132642815,0.05,1999.9,1999.8,9.33259593]
[1743132642998,0.05,1999.9,1999.8,9.38258452]
[1743132643717,0.05,1999.9,1999.8,9.33259593]
[1743132644120,0.05,1999.9,1999.8,4.33209593]
[1743132645325,0.05,1999.9,1999.8,23.8825841]
[1743132645486,0.05,1999.9,1999.8,24.20436794]
[1743132646286,0.05,1999.9,1999.8,28.20696383]
[1743132647116,0.05,1999.9,1999.8,24.75436794]
[1743132648019,0.05,1999.9,1999.8,28.20696383]
[1743132651020,0.05,1999.9,1999.8,24.75436794]
[1743132651228,0.05,1999.9,1999.8,23.92586794]
[1743132652033,0.05,1999.9,1999.8,28.92636794]
[1743132653322,0.05,1999.9,1999.8,32.92896383]
[1743132653717,0.05,1999.9,1999.8,29.47636794]
[1743132655704,0.05,1999.9,1999.8,23.16456794]
[1743132655998,0.05,1999.9,1999.8,26.61716383]
[1743132657426,0.05,1999.9,1999.8,21.89516383]
[1743132657601,0.05,1999.9,1999.8,26.61716383]
[1743132658509,0.05,1999.9,1999.8,32.43986383]
[1743132659139,0.05,1999.9,1999.8,32.98986383]
[1743132659706,0.05,1999.9,1999.8,36.44245972]
[1743132660807,0.05,1999.9,1999.8,42.47245972]
[1743132662398,0.05,1999.9,1999.8,29.29736383]
[1743132662621,0.05,1999.9,1999.8,39.01886383]
[1743132667446,0.05,1999.9,1999.8,38.46886383]
[1743132667621,0.05,1999.9,1999.8,28.74736383]
[1743132667823,0.05,1999.9,1999.8,32.64616383]
[1743132668541,0.05,1999.9,1999.8,37.64666383]
[1743132668737,0.05,1999.9,1999.8,0.94256794]
[1743132668952,0.05,1999.9,1999.7,1.4940634]
[1743132669247,0.8026,1999.9,1999.7,5.73412474]
[1743132670113,0.8026,1999.9,1999.7,1.01312474]
[1743132671726,0.8026,1999.9,1999.7,1.06312541]
[1743132672128,0.8026,1999.9,1999.7,1.59153728]
[1743132672331,0.05,1999.9,1999.8,3.45259589]
[1743132672636,0.05,1999.9,1999.8,3.83340393]
[1743132672948,0.05,1999.9,1999.8,23.33390393]
[1743132673149,0.05,1999.9,1999.8,34.19756794]
[1743132673646,0.05,1999.9,1999.8,30.74497205]
[1743132673830,0.05,1999.9,1999.8,34.19756794]
[1743132674439,0.26212105,2000.7,2000.1,0.7895]
[1743132674641,0.26212105,2000.7,2000.3,3.45259589]
[1743132674829,0.15776283,2000.6,2000.4,0.81745959]
[1743132675030,0.26212105,2000.7,2000.4,0.81745959]
[1743132675226,0.15776283,2000.6,2000.5,14.5]
[1743132675431,0.26212105,2000.7,2000.4,0.81745959]
[1743132675642,0.15776283,2000.6,2000.4,0.81745959]
[1743132675817,0.26212105,2000.7,2000.4,15.31745959]
[1743132676939,0.26212105,2000.7,2000.5,1.58172778]
[1743132677133,0.26212105,2000.7,2000.5,4.98434185]
[1743132677334,0.15776283,2000.6,2000.5,4.98434185]
[1743132677529,0.7783,2001.4,2000.6,3.7507]
[1743132677854,0.7783,2001.1,2000.6,7.721]
[1743132678052,0.16150829,2001.0,2000.6,4.721]
[1743132678356,0.7783,2000.9,2000.6,4.721]
[1743132678934,0.16204309,2000.8,2000.6,4.721]
[1743132679227,0.7783,2000.9,2000.6,4.721]
[1743132679432,0.16204309,2000.8,2000.6,4.721]
[1743132679657,0.7783,2000.9,2000.6,4.721]
[1743132679822,0.16204309,2000.8,2000.6,4.721]
[1743132680022,0.7783,2000.9,2000.6,4.721]
[1743132680251,0.16204309,2000.8,2000.6,4.721]
[1743132680460,0.7783,2000.9,2000.6,4.721]
[1743132680629,0.16204309,2000.8,2000.6,4.721]
[1743132680824,0.7783,2000.9,2000.6,5.67593536]
[1743132681043,0.16204309,2000.8,2000.6,20.17593536]
[1743132681262,0.7783,2000.9,2000.6,20.17593536]
[1743132681437,0.1639153,2000.8,2000.6,20.17593536]
[1743132681636,0.7783,2000.9,2000.6,20.17593536]
[1743132681836,0.1639153,2000.8,2000.6,20.17593536]
[1743132682139,0.7783,2000.9,2000.7,2.11699337]
[1743132682666,0.7573,2000.7,2000.5,5.71399836]
[1743132683169,0.7573,2000.7,2000.5,20.21399836]
[1743132684063,0.7573,2000.7,2000.5,5.71399836]
[1743132684268,0.1639153,2000.6,2000.5,0.99399836]
[1743132684564,0.7573,2000.7,2000.5,15.49399836]
[1743132687375,0.7573,2000.7,2000.5,0.99399836]
[1743132687548,0.7573,2000.7,2000.3,4.72]
[1743132687737,0.1639153,2000.6,2000.4,14.5]
[1743132687936,0.7573,2000.7,2000.4,14.5]
[1743132688669,0.7573,2000.7,2000.4,15.49960956]
[1743132690836,0.7573,2000.7,2000.4,0.99960956]
[1743132691033,0.1639153,2000.6,2000.4,0.99960956]
[1743132691271,0.7573,2000.7,2000.4,0.99960956]
[1743132691771,0.7573,2000.7,2000.4,1.04959405]
[1743132692159,0.7573,2000.7,2000.4,0.99960956]
[1743132692459,0.7573,2000.7,2000.4,1.04959403]
[1743132693570,0.7573,2000.7,2000.4,0.99960956]
[1743132695268,0.7573,2000.7,2000.4,1.04959398]
[1743132696068,0.1639153,2000.6,2000.4,0.99960956]
[1743132696256,0.7573,2000.7,2000.4,1.04959544]
[1743132696476,0.1639153,2000.6,2000.4,1.04959544]
[1743132696766,0.7573,2000.7,2000.4,3.42181457]
[1743132697366,0.7853,2000.9,2000.4,7.68461046]
[1743132697535,0.7853,2000.9,2000.4,7.63462458]
[1743132697738,0.1629793,2000.8,2000.4,7.63462458]
[1743132698552,0.1629793,2000.8,2000.5,0.04997675]
[1743132698753,0.1629793,2000.8,2000.5,2.26843688]
[1743132699044,0.1629793,2000.8,2000.5,0.04997675]
[1743132699274,0.1629793,2000.8,2000.6,14.5]
[1743132699445,0.7853,2000.9,2000.7,0.04997685]
[1743132699642,0.16275646,2000.8,2000.6,14.5]
[1743132699840,0.7853,2000.9,2000.6,16.71346246]
[1743132700035,0.16333581,2000.8,2000.6,16.71346246]
[1743132700862,0.16333581,2000.8,2000.7,0.04997679]
[1743132701064,0.16333581,2000.8,2000.6,16.71346246]
[1743132702472,0.16333581,2000.8,2000.7,0.0499768]
[1743132702677,0.16333581,2000.8,2000.7,1.72632073]
[1743132704280,0.8134,2001.0,2000.7,1.72632073]
[1743132704447,0.16333581,2000.9,2000.7,0.0499768]
[1743132704648,0.16333581,2000.9,2000.7,14.5]
[1743132706947,0.16333581,2000.9,2000.4,7.63462458]
[1743132707348,0.16333581,2000.9,2000.5,14.5]
[1743132708175,0.16333581,2000.9,2000.8,0.98657177]
[1743132711159,0.16333581,2000.9,2000.8,5.35998209]
[1743132711364,0.7782,2001.4,2000.8,5.35998209]
[1743132711753,0.16382615,2001.3,2000.8,5.35998209]
[1743132712464,0.16382615,2001.3,2000.9,14.54996756]
[1743132712660,0.7782,2001.4,2000.9,14.5]
[1743132712864,0.7782,2001.4,2001.0,2.86636502]
[1743132713069,0.16382615,2001.3,2001.0,2.86636502]
[1743132713267,0.7782,2001.4,2001.0,0.88036681]
[1743132713461,0.16382615,2001.3,2001.1,14.5]
[1743132713666,0.7782,2001.4,2001.1,14.5]
[1743132713866,0.16382615,2001.3,2001.1,14.5]
[1743132714070,0.7782,2001.4,2001.1,14.5]
[1743132714269,0.16382615,2001.3,2001.2,1.53304]
[1743132714468,0.7782,2001.4,2001.2,1.53304]
[1743132714700,0.7782,2001.4,2001.2,2.50910141]
[1743132714701,0.16382615,2001.3,2001.2,2.50910141]
[1743132714889,0.7782,2001.4,2001.2,2.50910141]
[1743132715087,0.16382615,2001.3,2001.2,2.50910141]
[1743132715288,0.7782,2001.4,2001.2,2.50910141]
[1743132715491,0.16382615,2001.3,2001.2,2.50910141]
[1743132715859,0.7782,2001.4,2001.2,2.50910141]
[1743132716177,0.16382615,2001.3,2001.2,2.50910141]
[1743132716376,0.16382615,2001.3,2001.2,0.97606141]
[1743132716577,0.7782,2001.4,2001.2,0.97606141]
[1743132716778,0.16382615,2001.3,2001.2,0.97606141]
[1743132717378,4.25139589,2001.6,2001.2,0.97606141]
[1743132717578,0.16382615,2001.3,2001.2,0.97606141]
[1743132717777,4.25139589,2001.6,2001.2,0.97606141]
[1743132717978,0.16382615,2001.3,2001.2,0.97606141]
[1743132718176,4.25139589,2001.6,2001.2,1.62860755]
[1743132718382,0.16382615,2001.3,2001.2,1.62860755]
[1743132718786,0.7988,2001.8,2001.2,1.62860755]
[1743132718985,0.16382615,2001.3,2001.2,2.17860755]
[1743132719180,0.7988,2001.8,2001.2,2.17860755]
[1743132719579,0.16382615,2001.7,2001.2,2.17860755]
[1743132720195,3.61642204,2001.7,2001.2,2.17860755]
[1743132720701,0.7513,2001.6,2001.2,1.62860755]
[1743132721198,0.16382615,2001.5,2001.2,1.62860755]
[1743132721497,0.7513,2001.6,2001.3,0.63476076]
[1743132721676,0.16382615,2001.5,2001.3,0.63476076]
[1743132721872,3.45259589,2001.5,2001.2,0.97606141]
[1743132722076,0.16917247,2001.4,2001.2,0.97606141]
[1743132722282,3.45259589,2001.5,2001.2,0.97606141]
[1743132722968,3.45259589,2001.3,2000.8,0.92081443]
[1743132723210,0.8299,2001.2,2000.7,5.5067]
[1743132723418,0.99907247,2001.2,2000.6,3.0]
[1743132723712,3.45259589,2001.1,2000.8,0.9847484]
[1743132723873,0.99907247,2001.0,2000.8,0.9847484]
[1743132724209,0.99907247,2001.0,2000.8,1.85502324]
[1743132724393,0.8299,2001.0,2000.8,1.85502324]
[1743132724590,0.16756877,2000.9,2000.8,1.85502324]
[1743132725696,0.16756877,2000.9,2000.8,0.9847484]
[1743132726624,0.81,2001.2,2000.8,0.9847484]
[1743132726770,0.16756877,2000.9,2000.8,0.9847484]
[1743132727098,0.81,2001.2,2000.8,0.9847484]
[1743132727296,0.16756877,2001.1,2000.8,0.9847484]
[1743132727473,3.8138,2001.4,2000.9,1.23883443]
[1743132727679,0.16747966,2001.3,2000.9,1.23883443]
[1743132727880,3.8138,2001.4,2000.9,0.44373443]
[1743132728080,0.16747966,2001.3,2000.8,0.9847484]
[1743132728388,0.16747966,2001.3,2001.0,0.0499696]
[1743132728567,0.16747966,2001.3,2000.8,0.9847484]
[1743132728771,3.8138,2001.4,2000.8,0.9847484]
[1743132728997,0.16747966,2001.2,2000.9,0.04996961]
[1743132729180,3.8138,2001.4,2000.9,0.04996962]
[1743132729506,3.8138,2001.4,2000.8,0.9847484]
[1743132729675,0.16747966,2001.3,2000.8,0.9847484]
[1743132730994,0.16747966,2001.3,2000.9,0.04996963]
[1743132731191,0.16747966,2001.3,2000.8,0.9847484]
[1743132731393,3.8138,2001.4,2000.8,0.9847484]
[1743132731592,0.16747966,2001.2,2000.8,0.9847484]
[1743132731772,0.1681925,2001.3,2000.8,0.9847484]
[1743132731975,3.8138,2001.4,2000.8,0.9847484]
[1743132732499,0.1681925,2001.3,2000.8,0.9847484]
[1743132732703,0.1681925,2001.3,2000.9,0.04996967]
[1743132732898,3.8138,2001.4,2000.9,0.04996967]
[1743132733099,0.1681925,2001.3,2000.9,0.04996967]
[1743132733304,0.8138,2001.4,2000.9,0.57821107]
[1743132733474,0.1681925,2001.3,2001.0,0.8268]
[1743132733673,0.8138,2001.4,2001.0,0.8268]
[1743132733978,0.1681925,2001.3,2001.0,0.8268]
[1743132734384,0.8138,2001.4,2001.0,0.8268]
[1743132734601,0.1681925,2001.2,2001.0,0.8268]
[1743132734910,0.1681925,2001.1,2000.9,0.5282414]
[1743132735077,0.8138,2001.4,2000.9,0.5282414]
[1743132735407,0.1681925,2001.3,2001.0,0.04996973]
[1743132735712,0.8138,2001.4,2001.0,0.04996973]
[1743132735883,0.1681925,2001.3,2001.0,0.04996973]
[1743132736085,0.8138,2001.4,2001.0,0.04996973]
[1743132736283,0.1681925,2001.3,2001.0,0.04996973]
[1743132736682,0.1681925,2001.2,2001.0,0.04996973]
[1743132736879,0.8138,2001.4,2001.0,0.04996973]
[1743132737083,0.16734617,2001.3,2001.0,0.04996973]
[1743132737284,0.8138,2001.4,2001.0,0.04996973]
[1743132737483,0.16734617,2001.3,2001.0,0.04996973]
[1743132737695,0.16734617,2001.3,2000.9,0.5282414]
[1743132737897,3.45259589,2001.1,2000.8,0.9847484]
[1743132738073,0.16747981,2001.0,2000.8,0.9847484]
[1743132738277,3.45259589,2001.1,2000.8,0.9847484]
[1743132738581,0.16747981,2001.0,2000.8,0.9847484]
[1743132744511,3.45259589,2000.9,2000.8,0.9847484]
[1743132744740,0.77,2000.8,2000.4,0.795]
[1743132744911,0.77,2000.8,2000.3,4.718]
[1743132745221,0.77,2000.8,2000.4,0.5513]
[1743132746414,0.77,2000.8,2000.5,0.04998265]
[1743132746612,4.25789589,2001.0,2000.4,0.55]
[1743132746907,0.1664551,2000.7,2000.4,0.55]
[1743132747215,3.45259589,2000.8,2000.6,1.01698138]
[1743132747707,0.1664551,2000.7,2000.6,1.01698138]
[1743132749314,3.45259589,2000.8,2000.6,1.01698138]
[1743132749514,0.9440551,2000.7,2000.6,1.01698138]
[1743132750017,0.9440551,2000.7,2000.0,1.3807]
[1743132750212,3.45259589,2000.6,2000.0,6.0987]
[1743132750617,0.16324674,2000.5,2000.1,14.54998797]
[1743132750819,4.23019589,2000.4,2000.0,0.8307]
[1743132751013,4.23019589,2000.4,2000.0,1.44057]
[1743132751317,3.45259589,2000.2,2000.0,14.5]
[1743132751520,0.7776,2000.1,1999.6,5.5497]
[1743132752016,0.7776,2000.1,1999.6,15.3307]
[1743132752237,3.45259589,2000.0,1999.6,15.3307]
[1743132752582,3.45259589,2000.0,1999.7,0.050002]
[1743132752788,3.45259589,2000.0,1999.6,15.3307]
[1743132752991,3.45259589,2000.0,1999.6,16.86377]
[1743132753192,3.45259589,2000.0,1999.9,0.98174738]
[1743132754241,0.7776,2000.1,1999.9,0.98174738]
[1743132754910,0.16204315,2000.0,1999.9,0.98174738]
[1743132755716,0.7776,2000.1,1999.9,0.98174738]
[1743132756029,0.16204315,2000.0,1999.9,0.98174738]
[1743132756422,0.7776,2000.1,1999.9,0.98174738]
[1743132756803,0.16204315,2000.0,1999.9,0.98174738]
[1743132757202,0.7776,2000.1,1999.9,0.98174738]
[1743132757622,0.16204315,2000.0,1999.7,14.5]
[1743132758123,0.7776,2000.1,1999.7,14.5]
[1743132759030,1.24230581,2000.1,1999.7,14.5]
[1743132759204,0.7776,2000.1,1999.7,14.5]
[1743132759409,0.16204315,2000.0,1999.7,14.5]
[1743132759751,0.7776,2000.1,1999.7,14.5]
[1743132759911,3.45259589,2000.0,1999.8,1.01454934]
[1743132760322,0.16204315,1999.9,1999.8,1.0645548]
[1743132760635,3.7971,2000.3,1999.8,1.06454813]
[1743132760934,0.16204315,1999.9,1999.8,1.01454934]
[1743132761132,3.7971,2000.3,1999.8,1.01454934]
[1743132761346,3.45259589,2000.2,1999.8,1.01454934]
[1743132762145,0.15789657,2000.1,1999.8,1.01454934]
[1743132762305,3.45259589,2000.2,1999.8,1.01454934]
[1743132762506,0.15789657,2000.1,1999.8,1.01454934]
[1743132762708,3.45259589,2000.2,1999.8,1.01454934]
[1743132762953,0.15789657,2000.1,1999.8,1.01454934]
[1743132763151,3.45259589,2000.2,1999.8,1.01454934]
[1743132763325,0.15789657,2000.1,1999.8,1.01454934]
[1743132763521,3.45259589,2000.2,1999.8,1.01454934]
[1743132763853,0.15789657,2000.1,1999.8,1.01454934]
[1743132764153,3.45259589,2000.2,1999.8,1.06454806]
[1743132764354,0.15789657,2000.1,1999.8,1.06454806]
[1743132764555,3.45259589,2000.2,1999.8,2.69783287]
[1743132764781,0.15789657,2000.1,1999.8,2.69783287]
[1743132764954,3.7971,2000.3,1999.8,2.64783415]
[1743132765165,0.15789657,2000.2,1999.9,0.7848]
[1743132765318,7.25379589,2000.7,2000.0,0.0499903]
[1743132765654,0.15606827,2000.6,2000.1,14.5]
[1743132765854,3.45259589,2000.5,2000.1,14.5]
[1743132766156,0.7866,2000.4,1999.9,0.7848]
[1743132766344,0.15606827,2000.3,2000.0,0.04999472]
[1743132766547,0.7866,2000.4,1999.9,0.7848]
[1743132766743,3.60866416,2000.3,2000.0,14.5]
[1743132766945,3.60866416,2000.3,1999.8,1.01454934]
[1743132767114,3.60866416,2000.3,1999.7,5.4929]
[1743132767316,3.60866416,2000.3,1999.8,15.04929]
[1743132767525,3.60866416,2000.3,2000.0,0.98710532]
[1743132773789,3.60866416,2000.3,1999.9,14.5]
[1743132773982,0.8013,2000.2,1999.9,14.5]
[1743132774139,0.15700499,2000.1,1999.9,14.5]
[1743132774345,0.8013,2000.2,1999.9,14.5]
[1743132774576,0.15700499,2000.1,1999.9,1.504929]
[1743132774837,0.8013,2000.2,1999.8,0.54929]
[1743132774996,0.15700499,2000.0,1999.8,15.04929]
[1743132775178,0.8013,2000.2,1999.8,15.04929]
[1743132775365,0.15700499,2000.1,1999.9,1.00743559]
[1743132775559,0.8258,2000.4,1999.9,1.00743559]
[1743132775876,0.15700499,2000.3,1999.9,2.69175815]
[1743132776375,0.15691579,2000.2,1999.9,2.69175815]
[1743132776578,0.8258,2000.4,1999.9,2.69175815]
[1743132776750,0.15700499,2000.3,1999.9,2.69175815]
[1743132776946,0.8258,2000.4,1999.9,2.69175815]
[1743132777151,0.15700499,2000.3,1999.9,2.69175815]
[1743132777364,0.8258,2000.4,2000.0,1.85275482]
[1743132777564,0.15700499,2000.3,1999.9,1.00743559]
[1743132777793,0.8258,2000.4,1999.9,1.00743559]
[1743132778092,0.15700499,2000.3,1999.9,1.00743559]
[1743132778475,0.8258,2000.4,1999.9,1.00743559]
[1743132778675,0.15700499,2000.2,1999.9,1.00743559]
[1743132778979,0.15700499,2000.1,1999.9,2.69175815]
[1743132779171,0.8258,2000.4,1999.9,2.69175815]
[1743132779483,0.15700499,2000.3,1999.9,2.69175815]
[1743132779779,0.8258,2000.4,1999.9,2.69175815]
[1743132779981,0.15700499,2000.3,1999.9,2.69175815]
[1743132780184,0.8258,2000.4,2000.0,1.85275482]
[1743132780371,0.15700499,2000.3,1999.9,1.00743559]
[1743132780547,0.8258,2000.4,1999.9,1.00743559]
[1743132780753,0.15700499,2000.3,1999.9,1.00743559]
[1743132781058,0.8258,2000.4,1999.9,1.00743559]
[1743132781259,0.15700499,2000.2,2000.0,0.04999842]
[1743132781469,0.8258,2000.4,1999.9,1.00743559]
[1743132781470,0.15713879,2000.3,1999.9,1.00743559]
[1743132781673,3.45259589,2000.3,1999.9,15.50743559]
[1743132781853,0.15713879,2000.2,1999.9,1.00743559]
[1743132782258,0.7503,2000.1,1999.6,0.7666]
[1743132782557,0.7503,2000.1,1999.6,1.40285223]
[1743132782754,0.15713879,2000.0,1999.7,14.5]
[1743132782955,0.7503,2000.1,1999.8,1.01506526]
[1743132783156,0.15713879,2000.0,1999.8,1.01506526]
[1743132783784,0.7503,2000.1,1999.8,1.01506526]
[1743132783954,0.15713879,2000.0,1999.8,1.01506526]
[1743132784155,0.7503,2000.1,1999.8,1.01506526]
[1743132784384,0.15713879,2000.0,1999.8,1.01506526]
[1743132787586,0.7503,2000.1,1999.8,1.01506526]
[1743132787889,4.719,2000.5,1999.9,0.7567]
[1743132787890,0.15638046,2000.0,1999.9,0.7567]
[1743132788197,0.8195,2000.5,1999.9,1.35669818]
[1743132788371,0.155533,2000.4,2000.1,3.45259589]
[1743132788567,0.8173,2000.9,2000.3,4.21969589]
[1743132788774,0.15615746,2000.8,2000.4,0.04998382]
[1743132788974,0.8173,2000.9,2000.4,0.04998382]
[1743132789160,0.8173,2000.9,2000.4,14.5]
[1743132789493,0.15615746,2000.8,2000.4,14.5]
[1743132789693,0.15615746,2000.8,2000.4,16.25673388]
[1743132789990,0.8173,2000.9,2000.5,0.98081428]
[1743132790371,0.15847612,2000.8,2000.5,0.98081428]
[1743132790784,0.8173,2000.9,2000.5,0.98081428]
[1743132790982,0.15847612,2000.8,2000.5,0.98081428]
[1743132791165,0.8173,2000.9,2000.5,2.7812791]
[1743132791365,0.15847612,2000.8,2000.5,2.7812791]
[1743132791577,0.8173,2000.9,2000.5,2.7812791]
[1743132791775,0.15847612,2000.8,2000.5,2.7812791]
[1743132791970,0.8173,2000.9,2000.5,2.7812791]
[1743132792177,0.15847612,2000.8,2000.6,1.72812791]
[1743132792377,0.8173,2000.9,2000.5,0.98081428]
[1743132792583,0.15847612,2000.8,2000.5,0.98081428]
[1743132792895,3.0,2001.0,2000.5,0.98081428]
[1743132793266,0.15847612,2000.9,2000.5,0.98081428]
[1743132793866,4.26989589,2001.1,2000.5,0.98081428]
[1743132794074,0.15847612,2000.8,2000.5,0.98081428]
[1743132794262,4.26989589,2001.1,2000.5,0.98081428]
[1743132794483,0.15847612,2000.7,2000.5,0.98081428]
[1743132794688,4.26989589,2001.1,2000.5,0.98081428]
[1743132794890,0.15847612,2000.6,2000.5,0.98081428]